[Event "Krakow Championship-C 2022"]
[Site "Krakow"]
[Date "2022.06.25"]
[Round "1.1"]
[White "Mielcuch, Karol"]
[Black "Grzelak, Piotr"]
[Result "1-0"]
[ECO "A13"]
[WhiteElo "1276"]
[BlackElo "1684"]
[Annotator "NA RC"]
[PlyCount "65"]
[EventDate "2022.06.25"]
[EventType "swiss"]
[EventCountry "POL"]
[SourceTitle "playchess.com"]
[Source "ChessBase"]
[SourceQuality "1"]
[TimeControl "5400+30"]

1. c4 {[%emt 0:00:05]} e6 {[%emt 0:00:01]} 2. Nf3 {[%emt 0:00:42]} d5 {[%emt 0:00:29]} 3. b3 {[%emt 0:00:07]} Nf6 {[%emt 0:01:14]} 4. Bb2 {[%emt 0:00:14]} Be7 {[%emt 0:00:55]} 5. g3 {[%emt 0:00:44]} O-O {[%emt 0:01:21]} 6. Bg2 {[%emt 0:00:45]} c5 {[%emt 0:01:12]} 7. d4 {[%emt 0:01:40]} dxc4 {[%emt 0:03:46]} 8. bxc4 {[%emt 0:00:13]} Nc6 {[%emt 0:01:17]} 9. O-O {[%emt 0:00:25]} Qc7 {[%emt 0:11:18]} 10. d5 {[%emt 0:01:04]} exd5 {[%emt 0:02:13]} 11. cxd5 {[%emt 0:00:11]} Rd8 {[%emt 0:02:10]} 12. Nc3 {[%emt 0:01:14]} a6 {[%emt 0:07:26]} 13. Qb3 {[%emt 0:00:49]} Na5 {[%emt 0:02:12]} 14. Qd1 {[%emt 0:00:47]} Bf5 {[%emt 0:01:41]} 15. Nd2 {[%emt 0:03:11]} Rac8 {[%emt 0:03:14]} 16. e4 {[%emt 0:00:22]} Bg4 {[%emt 0:01:57]} 17. Qe1 {[%emt 0:00:30]} Ne8 {[%emt 0:13:05]} 18. e5 {[%emt 0:02:03]} Qb6 {[%emt 0:12:00]} 19. Rb1 {[%emt 0:00:52]} Qh6 {[%emt 0:02:10]} 20. d6 {[%emt 0:01:34]} Bf8 {[%emt 0:05:22]} 21. Nd5 {[%emt 0:02:40]} Nc6 {[%emt 0:02:42]} 22. Ne4 {[%emt 0:02:14]} Nd4 {[%emt 0:01:06]} 23. Bc1 {[%emt 0:02:17]} Qg6 {[%emt 0:07:57]} 24. Nf4 {[%emt 0:04:24]} Qf5 {[%emt 0:01:50]} 25. f3 {[%emt 0:01:24]} Nxf3+ {[%emt 0:03:36]} 26. Bxf3 {[%emt 0:01:24]} Bxf3 {[%emt 0:00:07]} 27. Rxf3 {[%emt 0:00:12]} g5 {[%emt 0:01:36]} 28. Rxb7 {[%emt 0:03:25]} gxf4 {[%emt 0:01:53]} 29. Rxf4 {[%emt 0:00:25]} Qe6 {[%emt 0:02:21]} 30. Rbxf7 {[%emt 0:01:04]} Bh6 {[%emt 0:02:35]} 31. Re7 {[%emt 0:01:03]} Qg6 {[%emt 0:01:40]} 32. Nf6+ {[%emt 0:01:59]} Kf8 {[%emt 0:02:41]} 33. Rg4 {[%emt 0:01:47]} 1-0

[Event "Krakow Championship-C 2022"]
[Site "Krakow"]
[Date "2022.06.25"]
[Round "1.2"]
[White "Krasuski, Pawel"]
[Black "Gruca, Karol"]
[Result "1-0"]
[ECO "B27"]
[WhiteElo "1682"]
[BlackElo "1247"]
[Annotator "NA RC"]
[PlyCount "83"]
[EventDate "2022.06.25"]
[EventType "swiss"]
[EventCountry "POL"]
[SourceTitle "playchess.com"]
[Source "ChessBase"]
[SourceQuality "1"]
[TimeControl "5400+30"]

1. e4 {[%emt 0:00:02]} c5 {[%emt 0:00:08]} 2. Nf3 {[%emt 0:00:09]} g6 {[%emt 0:00:15]} 3. c3 {[%emt 0:00:39]} Bg7 {[%emt 0:00:43]} 4. h4 {[%emt 0:00:29]} h5 {[%emt 0:02:39]} 5. d4 {[%emt 0:01:02]} cxd4 {[%emt 0:00:58]} 6. Nxd4 {[%emt 0:00:11]} Nc6 {[%emt 0:02:28]} 7. Nb3 {[%emt 0:01:03]} Nf6 {[%emt 0:02:22]} 8. Qc2 {[%emt 0:02:27]} Qc7 {[%emt 0:03:11]} 9. Bg5 {[%emt 0:00:39]} Ng4 {[%emt 0:03:56]} 10. Be2 {[%emt 0:02:05]} Nce5 {[%emt 0:11:42]} 11. f3 {[%emt 0:04:58]} Nh6 {[%emt 0:01:47]} 12. N1d2 {[%emt 0:00:27]} f6 {[%emt 0:01:28]} 13. Be3 {[%emt 0:00:10]} O-O {[%emt 0:00:46]} 14. O-O-O {[%emt 0:00:42]} d6 {[%emt 0:02:14]} 15. Nd4 {[%emt 0:00:36]} a6 {[%emt 0:01:48]} 16. Qb3+ {[%emt 0:00:23]} Kh7 {[%emt 0:01:02]} 17. g4 {[%emt 0:02:44]} hxg4 {[%emt 0:03:19]} 18. f4 {[%emt 0:00:06]} Nc6 {[%emt 0:01:50]} 19. Kb1 {[%emt 0:04:11]} f5 {[%emt 0:04:27]} 20. h5 {[%emt 0:00:30]} Nd8 {[%emt 0:06:50]} 21. hxg6+ {[%emt 0:00:52]} Kxg6 {[%emt 0:01:11]} 22. Bd3 {[%emt 0:01:28]} e6 {[%emt 0:05:44]} 23. exf5+ {[%emt 0:05:29]} exf5 {[%emt 0:01:06]} 24. Qd5 {[%emt 0:00:20]} Bxd4 {[%emt 0:01:37]} 25. Bxd4 {[%emt 0:01:19]} Be6 {[%emt 0:05:50]} 26. Rxh6+ {[%emt 0:00:44]} Kxh6 {[%emt 0:01:32]} 27. Qh1+ {[%emt 0:00:13]} Kg6 {[%emt 0:01:38]} 28. Rg1 {[%emt 0:00:18]} Qc6 {[%emt 0:09:13]} 29. Nf3 {[%emt 0:04:39]} Kf7 {[%emt 0:03:00]} 30. Ng5+ {[%emt 0:00:40]} Ke7 {[%emt 0:01:34]} 31. Qh7+ {[%emt 0:01:03]} Rf7 {[%emt 0:03:18]} 32. Nxf7 {[%emt 0:00:40]} Nxf7 {[%emt 0:00:29]} 33. Bxf5 {[%emt 0:00:49]} Bxf5+ {[%emt 0:02:53]} 34. Qxf5 {[%emt 0:00:10]} Rg8 {[%emt 0:00:50]} 35. Re1+ {[%emt 0:01:01]} Kf8 {[%emt 0:00:31]} 36. Bf6 {[%emt 0:00:09]} g3 {[%emt 0:02:17]} 37. Be7+ {[%emt 0:01:12]} Kg7 {[%emt 0:00:27]} 38. Qf6+ {[%emt 0:00:11]} Kh7 {[%emt 0:00:47]} 39. Qxf7+ {[%emt 0:00:08]} Rg7 {[%emt 0:00:40]} 40. Qh5+ {[%emt 0:00:44]} Kg8 {[%emt 0:00:10]} 41. Bf6 {[%emt 0:00:23]} Rf7 {[%emt 0:00:33]} 42. Qh8# {[%emt 0:00:19]} 1-0

[Event "Krakow Championship-C 2022"]
[Site "Krakow"]
[Date "2022.06.25"]
[Round "1.3"]
[White "Pilch, Antoni"]
[Black "Buchowski, Adam"]
[Result "0-1"]
[ECO "B28"]
[WhiteElo "1257"]
[BlackElo "1666"]
[Annotator "NA RC"]
[PlyCount "142"]
[EventDate "2022.06.25"]
[EventType "swiss"]
[EventCountry "POL"]
[SourceTitle "playchess.com"]
[Source "ChessBase"]
[SourceQuality "1"]
[TimeControl "5400+30"]

1. e4 c5 2. Nf3 a6 3. c4 e6 4. Nc3 Nc6 5. d4 cxd4 6. Nxd4 Nge7 7. Be2 Nxd4 8. Qxd4 Nc6 9. Qd1 Bc5 10. a3 Bd4 11. Bd2 O-O 12. O-O d6 13. Rc1 Bd7 14. Bf4 Qe7 15. b4 Be5 16. Bxe5 dxe5 17. f4 exf4 18. Rxf4 Ne5 19. Qb3 Rfd8 20. Rd1 Bc6 21. Rff1 Qg5 22. Qc2 b6 23. Kh1 f5 24. Rg1 Qe3 25. exf5 exf5 26. Nd5 Bxd5 27. Rxd5 f4 28. Rf1 Rac8 29. Rxd8+ Rxd8 30. Rd1 Re8 31. Qd2 Qxa3 32. Qxf4 Qxb4 33. Qe4 Qe7 34. Qd5+ Qe6 35. Qxe6+ Rxe6 36. h3 Kf7 37. Rd5 Kf6 38. Kg1 Rc6 39. Kf2 Ke6 40. Rd4 a5 41. Ke3 Rc5 42. Kd2 a4 43. Kc3 Nc6 44. Rd2 b5 45. Rb2 b4+ 46. Rxb4 Nxb4 47. Kxb4 Kd6 48. Kxa4 Rg5 49. Bf3 Kc5 50. Kb3 Rg3 51. Kc3 g5 52. Kd2 Kxc4 53. Ke3 h5 54. Kf2 h4 55. Ke2 Kd4 56. Kd2 Ke5 57. Ke2 Kf4 58. Kf2 Ke5 59. Ke3 Kd6 60. Kd4 g4 61. Bxg4 Rxg2 62. Ke4 Rf2 63. Bf3 Ke6 64. Kf4 Kf6 65. Kg4 Ke5 66. Bd1 Rf4+ 67. Kg5 Rf8 68. Kxh4 Kf4 69. Bg4 Rh8+ 70. Bh5 Kf5 71. Kg3 Rxh5 0-1

[Event "Krakow Championship-C 2022"]
[Site "Krakow"]
[Date "2022.06.25"]
[Round "1.4"]
[White "Marcinek, Pawel"]
[Black "Wolszczak, Natalia"]
[Result "1/2-1/2"]
[ECO "B80"]
[WhiteElo "1665"]
[BlackElo "1233"]
[Annotator "NA RC"]
[PlyCount "92"]
[EventDate "2022.06.25"]
[EventType "swiss"]
[EventCountry "POL"]
[SourceTitle "playchess.com"]
[Source "ChessBase"]
[SourceQuality "1"]
[TimeControl "5400+30"]

1. e4 {[%emt 0:00:06]} c5 {[%emt 0:00:05]} 2. Nf3 {[%emt 0:00:14]} d6 {[%emt 0:00:05]} 3. d4 {[%emt 0:00:15]} cxd4 {[%emt 0:00:05]} 4. Nxd4 {[%emt 0:00:04]} Nf6 {[%emt 0:00:04]} 5. Nc3 {[%emt 0:00:28]} e6 {[%emt 0:00:15]} 6. Be3 {[%emt 0:00:42]} a6 {[%emt 0:00:08]} 7. Qd2 {[%emt 0:00:34]} Be7 {[%emt 0:00:19]} 8. O-O-O {[%emt 0:00:45]} Bd7 {[%emt 0:01:36]} 9. f3 {[%emt 0:00:15]} Nc6 {[%emt 0:00:47]} 10. g4 {[%emt 0:00:51]} b5 {[%emt 0:00:56]} 11. Be2 {[%emt 0:03:32]} Nxd4 {[%emt 0:04:49]} 12. Qxd4 {[%emt 0:01:50]} O-O {[%emt 0:02:10]} 13. f4 {[%emt 0:05:19]} Qa5 {[%emt 0:04:22]} 14. a3 {[%emt 0:17:25]} Rab8 {[%emt 0:03:04]} 15. Na2 {[%emt 0:06:18]} Rfc8 {[%emt 0:11:45]} 16. Nb4 {[%emt 0:03:50]} d5 {[%emt 0:05:17]} 17. exd5 {[%emt 0:07:10]} Nxd5 {[%emt 0:02:13]} 18. Nxd5 {[%emt 0:00:40]} exd5 {[%emt 0:00:17]} 19. Qa7 {[%emt 0:04:47]} Qa4 {[%emt 0:05:24]} 20. Bd3 {[%emt 0:04:28]} b4 {[%emt 0:03:42]} 21. Qxa6 {[%emt 0:01:53]} bxa3 {[%emt 0:03:47]} 22. Qxa4 {[%emt 0:00:54]} Bxa4 {[%emt 0:00:08]} 23. bxa3 {[%emt 0:00:14]} Bxa3+ {[%emt 0:01:58]} 24. Kd2 {[%emt 0:00:02]} Bb4+ {[%emt 0:02:05]} 25. Ke2 {[%emt 0:00:02]} Re8 {[%emt 0:04:30]} 26. Kf2 {[%emt 0:00:02]} Bc3 {[%emt 0:01:15]} 27. Rb1 {[%emt 0:02:49]} d4 {[%emt 0:11:51]} 28. Rxb8 {[%emt 0:01:05]} Rxb8 {[%emt 0:00:10]} 29. Bc1 {[%emt 0:00:12]} Rb1 {[%emt 0:02:44]} 30. Rf1 {[%emt 0:00:19]} Ra1 {[%emt 0:04:54]} 31. f5 {[%emt 0:00:18]} Ra2 {[%emt 0:02:44]} 32. Kf3 {[%emt 0:01:35]} Bxc2 {[%emt 0:02:28]} 33. Rf2 {[%emt 0:00:01]} Bb3 {[%emt 0:02:38]} 34. Rxa2 {[%emt 0:00:30]} Bxa2 {[%emt 0:00:02]} 35. Ke4 {[%emt 0:00:49]} f6 {[%emt 0:04:27]} 36. Ba3 {[%emt 0:00:04]} Kf7 {[%emt 0:01:05]} 37. Bc5 {[%emt 0:00:02]} g6 {[%emt 0:01:14]} 38. Bxd4 {[%emt 0:00:18]} Bxd4 {[%emt 0:02:36]} 39. Kxd4 {[%emt 0:00:01]} gxf5 {[%emt 0:04:44]} 40. Bxf5 {[%emt 0:00:03]} h6 {[%emt 0:00:59]} 41. Kc5 {[%emt 0:00:30]} Bb3 {[%emt 0:01:23]} 42. Kd6 {[%emt 0:00:25]} Bd1 {[%emt 0:01:00]} 43. h4 {[%emt 0:00:30]} Be2 {[%emt 0:01:06]} 44. Be6+ {[%emt 0:00:50]} Kg7 {[%emt 0:00:09]} 45. Ke7 {[%emt 0:00:42]} Bd1 {[%emt 0:00:27]} 46. h5 {[%emt 0:00:01]} Be2 {[%emt 0:00:41]} 1/2-1/2

[Event "Krakow Championship-C 2022"]
[Site "Krakow"]
[Date "2022.06.25"]
[Round "1.5"]
[White "Dymara, Jerzy"]
[Black "Melino, Gianluca"]
[Result "1-0"]
[ECO "B06"]
[WhiteElo "1217"]
[BlackElo "1633"]
[Annotator "NA"]
[PlyCount "53"]
[EventDate "2022.06.25"]
[EventType "swiss"]
[EventCountry "POL"]
[SourceTitle "playchess.com"]
[Source "ChessBase"]
[SourceQuality "1"]
[TimeControl "5400+30"]

1. e4 {[%emt 0:00:05]} g6 {[%emt 0:00:05]} 2. d4 {[%emt 0:00:07]} Bg7 {[%emt 0:00:06]} 3. Nc3 {[%emt 0:00:28]} d6 {[%emt 0:00:04]} 4. Be3 {[%emt 0:00:13]} a6 {[%emt 0:00:06]} 5. Qd2 {[%emt 0:00:30]} b5 {[%emt 0:00:07]} 6. O-O-O {[%emt 0:01:09]} Bb7 {[%emt 0:00:12]} 7. f3 {[%emt 0:00:39]} Nd7 {[%emt 0:00:05]} 8. g4 {[%emt 0:00:37]} c5 {[%emt 0:00:32]} 9. dxc5 {[%emt 0:00:45]} Nxc5 {[%emt 0:00:14]} 10. Bd4 {[%emt 0:00:53]} f6 {[%emt 0:09:38]} 11. h4 {[%emt 0:01:25]} Ne6 {[%emt 0:01:22]} 12. Be3 {[%emt 0:00:56]} Rc8 {[%emt 0:01:21]} 13. Kb1 {[%emt 0:01:21]} Qa5 {[%emt 0:01:49]} 14. Nge2 {[%emt 0:01:08]} b4 {[%emt 0:05:51]} 15. Nd5 {[%emt 0:00:35]} Bxd5 {[%emt 0:00:52]} 16. exd5 {[%emt 0:02:14]} Nc5 {[%emt 0:05:13]} 17. Nd4 {[%emt 0:01:54]} Qb6 {[%emt 0:08:25]} 18. Ne6 {[%emt 0:01:37]} Kf7 {[%emt 0:05:26]} 19. Bxc5 {[%emt 0:02:35]} dxc5 {[%emt 0:02:01]} 20. Bc4 {[%emt 0:02:05]} Qd6 {[%emt 0:01:34]} 21. g5 {[%emt 0:02:02]} a5 {[%emt 0:02:41]} 22. Rhe1 {[%emt 0:02:33]} f5 {[%emt 0:04:10]} 23. Nxg7 {[%emt 0:01:05]} Kxg7 {[%emt 0:00:16]} 24. Re6 {[%emt 0:00:56]} Qg3 {[%emt 0:02:06]} 25. d6 {[%emt 0:03:50]} Rd8 {[%emt 0:01:43]} 26. Qe2 {[%emt 0:01:09]} exd6 {[%emt 0:04:36]} 27. Re7+ {[%emt 0:00:35]} 1-0

[Event "Krakow Championship-C 2022"]
[Site "Krakow"]
[Date "2022.06.25"]
[Round "1.6"]
[White "Swietlik, Grzegorz"]
[Black "Wasik, Adam"]
[Result "0-1"]
[ECO "A01"]
[WhiteElo "1623"]
[BlackElo "1209"]
[Annotator "NA RC"]
[PlyCount "68"]
[EventDate "2022.06.25"]
[EventType "swiss"]
[EventCountry "POL"]
[SourceTitle "playchess.com"]
[Source "ChessBase"]
[SourceQuality "1"]
[TimeControl "5400+30"]

1. b3 e5 {[%emt 0:02:24]} 2. Bb2 {[%emt 0:00:07]} Nc6 {[%emt 0:00:14]} 3. e3 {[%emt 0:00:07]} d5 {[%emt 0:04:28]} 4. Bb5 {[%emt 0:00:10]} Bd6 {[%emt 0:01:00]} 5. f4 {[%emt 0:00:07]} f6 {[%emt 0:06:59]} 6. Qh5+ {[%emt 0:00:20]} g6 {[%emt 0:01:58]} 7. Qh4 {[%emt 0:00:07]} a6 {[%emt 0:11:34]} 8. Bxc6+ {[%emt 0:05:03]} bxc6 {[%emt 0:00:09]} 9. fxe5 {[%emt 0:00:28]} Bxe5 {[%emt 0:12:48]} 10. Bxe5 {[%emt 0:00:09]} fxe5 {[%emt 0:00:31]} 11. Qxd8+ {[%emt 0:00:06]} Kxd8 {[%emt 0:00:10]} 12. Nf3 {[%emt 0:00:09]} e4 {[%emt 0:08:36]} 13. Ne5 {[%emt 0:00:10]} Be6 {[%emt 0:07:56]} 14. Nxc6+ {[%emt 0:00:07]} Kd7 {[%emt 0:00:19]} 15. Nd4 {[%emt 0:00:08]} Ne7 {[%emt 0:06:15]} 16. Nxe6 {[%emt 0:08:29]} Kxe6 {[%emt 0:00:11]} 17. Nc3 {[%emt 0:00:47]} Nf5 {[%emt 0:08:56]} 18. O-O {[%emt 0:02:32]} Rhf8 {[%emt 0:03:10]} 19. Rf4 {[%emt 0:01:26]} c6 {[%emt 0:09:09]} 20. Raf1 {[%emt 0:03:49]} Rf7 {[%emt 0:02:53]} 21. Ne2 {[%emt 0:10:13]} Raf8 {[%emt 0:01:22]} 22. g4 {[%emt 0:06:59]} Nh4 {[%emt 0:03:22]} 23. Nd4+ {[%emt 0:00:22]} Ke7 {[%emt 0:02:55]} 24. Nxc6+ {[%emt 0:02:58]} Ke8 {[%emt 0:01:22]} 25. Nd4 {[%emt 0:05:22]} Rxf4 {[%emt 0:01:50]} 26. Rxf4 {[%emt 0:01:10]} Rxf4 {[%emt 0:00:16]} 27. exf4 {[%emt 0:00:06]} Kd7 {[%emt 0:01:08]} 28. Kf2 {[%emt 0:00:17]} Kd6 {[%emt 0:01:09]} 29. Kg3 {[%emt 0:03:03]} Kc5 {[%emt 0:00:21]} 30. Kxh4 {[%emt 0:00:43]} Kxd4 {[%emt 0:00:08]} 31. f5 {[%emt 0:00:05]} Ke5 {[%emt 0:01:08]} 32. fxg6 {[%emt 0:00:15]} hxg6 {[%emt 0:00:10]} 33. Kg5 {[%emt 0:00:05]} d4 {[%emt 0:00:29]} 34. Kh4 {[%emt 0:00:09]} Kf4 {[%emt 0:01:00]} 0-1

[Event "Krakow Championship-C 2022"]
[Site "Krakow"]
[Date "2022.06.25"]
[Round "1.7"]
[White "Smolinski, Wojciech"]
[Black "Andriienko, Artom"]
[Result "0-1"]
[ECO "B51"]
[WhiteElo "1202"]
[BlackElo "1588"]
[Annotator "NA RC"]
[PlyCount "98"]
[EventDate "2022.06.25"]
[EventType "swiss"]
[EventCountry "POL"]
[SourceTitle "playchess.com"]
[Source "ChessBase"]
[SourceQuality "1"]
[TimeControl "5400+30"]

1. e4 {[%emt 0:00:13]} c5 {[%emt 0:00:12]} 2. Nf3 {[%emt 0:00:12]} d6 {[%emt 0:00:15]} 3. Bb5+ {[%emt 0:00:11]} Nd7 {[%emt 0:01:09]} 4. a4 {[%emt 0:00:35]} a6 {[%emt 0:01:11]} 5. Be2 {[%emt 0:00:21]} Ngf6 {[%emt 0:01:07]} 6. Nc3 {[%emt 0:00:21]} g6 {[%emt 0:01:32]} 7. d4 {[%emt 0:03:30]} cxd4 {[%emt 0:00:56]} 8. Nxd4 {[%emt 0:00:59]} Nc5 {[%emt 0:02:24]} 9. Bf3 {[%emt 0:03:49]} Bg7 {[%emt 0:02:06]} 10. O-O {[%emt 0:03:54]} O-O {[%emt 0:01:06]} 11. Be3 {[%emt 0:01:53]} h5 {[%emt 0:06:47]} 12. h3 {[%emt 0:02:19]} Ne6 {[%emt 0:08:56]} 13. Qd2 {[%emt 0:04:35]} Rb8 {[%emt 0:31:03]} 14. Rfd1 {[%emt 0:08:35]} Nxd4 {[%emt 0:07:42]} 15. Bxd4 {[%emt 0:00:30]} Nd7 {[%emt 0:00:44]} 16. Bxg7 {[%emt 0:01:14]} Kxg7 {[%emt 0:00:07]} 17. Be2 {[%emt 0:04:16]} b6 {[%emt 0:03:20]} 18. Qg5 {[%emt 0:10:02]} Rh8 {[%emt 0:04:07]} 19. f4 {[%emt 0:12:22]} f6 {[%emt 0:02:55]} 20. Qh4 {[%emt 0:00:34]} Bb7 {[%emt 0:01:29]} 21. Rd3 {[%emt 0:05:35]} Nc5 {[%emt 0:02:25]} 22. Re3 {[%emt 0:00:36]} e5 {[%emt 0:00:56]} 23. f5 {[%emt 0:02:35]} g5 {[%emt 0:00:35]} 24. Qg3 {[%emt 0:01:02]} h4 {[%emt 0:00:11]} 25. Qf3 {[%emt 0:02:42]} a5 {[%emt 0:02:13]} 26. b3 {[%emt 0:03:54]} Rc8 {[%emt 0:06:29]} 27. Rd1 {[%emt 0:01:47]} Qe7 {[%emt 0:02:13]} 28. Nd5 {[%emt 0:01:53]} Bxd5 {[%emt 0:01:17]} 29. Rxd5 {[%emt 0:00:16]} Nb7 {[%emt 0:00:21]} 30. Rc3 {[%emt 0:00:55]} Rc5 {[%emt 0:00:26]} 31. Rcxc5 {[%emt 0:01:56]} Nxc5 {[%emt 0:00:34]} 32. Bd3 {[%emt 0:02:10]} Rd8 {[%emt 0:02:53]} 33. Qh5 {[%emt 0:04:24]} Qf7 {[%emt 0:00:43]} 34. Qxf7+ {[%emt 0:01:17]} Kxf7 {[%emt 0:00:08]} 35. Kf2 {[%emt 0:00:56]} Ke7 {[%emt 0:00:14]} 36. Kf3 {[%emt 0:01:13]} Rc8 {[%emt 0:00:24]} 37. Bc4 {[%emt 0:00:37]} Nxa4 {[%emt 0:02:34]} 38. Rb5 {[%emt 0:01:05]} Nb2 {[%emt 0:00:12]} 39. Rxb6 {[%emt 0:01:51]} Nxc4 {[%emt 0:00:08]} 40. bxc4 {[%emt 0:00:21]} Ra8 {[%emt 0:00:10]} 41. Rb3 {[%emt 0:02:43]} a4 {[%emt 0:00:15]} 42. Ra3 {[%emt 0:00:23]} Kd7 {[%emt 0:01:08]} 43. Ke3 {[%emt 0:00:28]} Kc6 {[%emt 0:00:06]} 44. Kd3 {[%emt 0:00:28]} Kc5 {[%emt 0:00:03]} 45. Kc3 {[%emt 0:00:27]} Ra6 {[%emt 0:00:24]} 46. Ra1 {[%emt 0:03:09]} a3 {[%emt 0:00:13]} 47. Kb3 {[%emt 0:00:44]} a2 {[%emt 0:01:20]} 48. Kc3 {[%emt 0:00:14]} Ra8 {[%emt 0:00:44]} 49. Kb3 {[%emt 0:00:08]} Kd4 {[%emt 0:00:08]} 0-1

[Event "Krakow Championship-C 2022"]
[Site "Krakow"]
[Date "2022.06.25"]
[Round "1.8"]
[White "Chmielewski, Miroslaw"]
[Black "Nema, Rabab Ahmed"]
[Result "1-0"]
[ECO "C05"]
[WhiteElo "1571"]
[BlackElo "1172"]
[Annotator "NA RC"]
[PlyCount "122"]
[EventDate "2022.06.25"]
[EventType "swiss"]
[EventCountry "POL"]
[SourceTitle "playchess.com"]
[Source "ChessBase"]
[SourceQuality "1"]
[TimeControl "5400+30"]

1. e4 {[%emt 0:00:05]} e6 {[%emt 0:00:09]} 2. d4 {[%emt 0:01:28]} d5 {[%emt 0:00:14]} 3. Nd2 {[%emt 0:00:25]} Nf6 {[%emt 0:03:08]} 4. e5 {[%emt 0:02:44]} Nfd7 {[%emt 0:02:25]} 5. c3 {[%emt 0:01:31]} c5 {[%emt 0:01:58]} 6. f4 {[%emt 0:07:45]} Nc6 {[%emt 0:06:14]} 7. Ngf3 {[%emt 0:01:36]} Qb6 {[%emt 0:08:29]} 8. Qb3 {[%emt 0:00:44]} c4 {[%emt 0:10:08]} 9. Qc2 {[%emt 0:06:01]} Be7 {[%emt 0:03:07]} 10. Be2 {[%emt 0:02:43]} f6 {[%emt 0:08:26]} 11. O-O {[%emt 0:11:12]} O-O {[%emt 0:06:51]} 12. Kh1 {[%emt 0:00:12]} f5 {[%emt 0:05:11]} 13. b3 {[%emt 0:01:36]} cxb3 {[%emt 0:04:01]} 14. axb3 {[%emt 0:00:08]} Qc7 {[%emt 0:04:11]} 15. Ba3 {[%emt 0:04:10]} Nb6 {[%emt 0:12:32]} 16. Bc5 {[%emt 0:06:18]} Nd7 {[%emt 0:08:02]} 17. Bxe7 Nxe7 18. Rfc1 {[%emt 0:07:44]} Nc6 {[%emt 0:03:47]} 19. b4 {[%emt 0:06:45]} Nb6 {[%emt 0:03:51]} 20. Qb3 {[%emt 0:02:16]} Qe7 {[%emt 0:01:01]} 21. b5 {[%emt 0:01:23]} Nb8 {[%emt 0:02:13]} 22. Qa3 {[%emt 0:07:06]} Qxa3 {[%emt 0:01:53]} 23. Rxa3 {[%emt 0:00:07]} a6 {[%emt 0:01:54]} 24. Rca1 {[%emt 0:00:47]} N8d7 {[%emt 0:00:33]} 25. Nb3 {[%emt 0:04:08]} Nc4 {[%emt 0:00:41]} 26. Bxc4 {[%emt 0:00:24]} dxc4 {[%emt 0:00:11]} 27. Nc5 {[%emt 0:00:47]} Nxc5 {[%emt 0:00:39]} 28. dxc5 {[%emt 0:00:08]} Bd7 {[%emt 0:00:57]} 29. Nd4 Rfc8 30. bxa6 {[%emt 0:05:34]} bxa6 {[%emt 0:01:21]} 31. Rxa6 {[%emt 0:01:53]} Rxa6 {[%emt 0:00:07]} 32. Rxa6 {[%emt 0:00:06]} Rxc5 {[%emt 0:00:13]} 33. Kg1 {[%emt 0:02:06]} Kf7 {[%emt 0:00:28]} 34. Kf2 {[%emt 0:00:09]} h6 {[%emt 0:01:07]} 35. h4 {[%emt 0:00:43]} h5 {[%emt 0:00:14]} 36. Ke3 {[%emt 0:00:55]} Ke7 {[%emt 0:00:28]} 37. Kd2 {[%emt 0:00:35]} Rd5 {[%emt 0:01:16]} 38. Kc2 {[%emt 0:00:15]} Bb5 {[%emt 0:00:22]} 39. Rxe6+ {[%emt 0:02:00]} Kd7 {[%emt 0:00:19]} 40. Rg6 {[%emt 0:01:46]} Ba4+ {[%emt 0:00:59]} 41. Kd2 {[%emt 0:00:46]} Ke7 {[%emt 0:00:41]} 42. Rxg7+ {[%emt 0:00:19]} Kf8 {[%emt 0:00:13]} 43. Ra7 {[%emt 0:00:19]} Bb5 {[%emt 0:00:24]} 44. Ra5 {[%emt 0:00:56]} Bc6 {[%emt 0:00:12]} 45. Rxd5 {[%emt 0:00:10]} Bxd5 {[%emt 0:00:02]} 46. Nxf5 {[%emt 0:00:15]} Bxg2 {[%emt 0:00:12]} 47. Ne3 {[%emt 0:00:11]} Bf3 {[%emt 0:00:41]} 48. Nxc4 {[%emt 0:00:07]} Ke7 {[%emt 0:00:17]} 49. Ke3 {[%emt 0:00:09]} Bg4 {[%emt 0:00:06]} 50. Kd4 {[%emt 0:00:18]} Ke6 {[%emt 0:00:19]} 51. Ne3 {[%emt 0:00:12]} Bf3 {[%emt 0:00:56]} 52. f5+ {[%emt 0:00:17]} Kf7 {[%emt 0:00:56]} 53. Nd5 {[%emt 0:00:17]} Bg4 {[%emt 0:00:38]} 54. e6+ {[%emt 0:00:10]} Ke8 {[%emt 0:00:14]} 55. Ke5 {[%emt 0:00:06]} Bf3 {[%emt 0:00:41]} 56. f6 {[%emt 0:00:17]} Kf8 {[%emt 0:01:25]} 57. e7+ {[%emt 0:01:55]} Kf7 {[%emt 0:00:37]} 58. Nc7 {[%emt 0:00:58]} Bc6 {[%emt 0:00:14]} 59. Ne6 {[%emt 0:00:40]} Bb5 {[%emt 0:00:42]} 60. Ng5+ {[%emt 0:00:24]} Ke8 {[%emt 0:00:36]} 61. Kd6 {[%emt 0:01:06]} Bd3 1-0

[Event "Krakow Championship-C 2022"]
[Site "Krakow"]
[Date "2022.06.26"]
[Round "2.1"]
[White "Radwanski, Mikolaj"]
[Black "Krasuski, Pawel"]
[Result "1-0"]
[ECO "A06"]
[WhiteElo "1349"]
[BlackElo "1682"]
[Annotator "NA RC"]
[PlyCount "37"]
[EventDate "2022.06.25"]
[EventType "swiss"]
[EventCountry "POL"]
[SourceTitle "playchess.com"]
[Source "ChessBase"]
[SourceQuality "1"]
[TimeControl "5400+30"]

1. Nf3 {[%emt 0:00:04]} d5 {[%emt 0:00:21]} 2. g3 {[%emt 0:00:13]} Nf6 {[%emt 0:00:17]} 3. Bg2 {[%emt 0:00:12]} e6 {[%emt 0:00:22]} 4. d3 {[%emt 0:00:34]} Be7 {[%emt 0:02:07]} 5. Nbd2 {[%emt 0:00:15]} b6 {[%emt 0:02:43]} 6. e4 {[%emt 0:06:51]} c6 {[%emt 0:00:58]} 7. e5 {[%emt 0:01:16]} Nfd7 {[%emt 0:00:11]} 8. O-O {[%emt 0:01:21]} c5 {[%emt 0:04:08]} 9. c4 {[%emt 0:08:48]} Bb7 {[%emt 0:00:16]} 10. cxd5 {[%emt 0:00:38]} Bxd5 {[%emt 0:00:16]} 11. a4 {[%emt 0:01:59]} Nc6 {[%emt 0:01:18]} 12. Re1 {[%emt 0:05:19]} Qc7 {[%emt 0:00:41]} 13. Qe2 {[%emt 0:00:38]} Rd8 {[%emt 0:03:52]} 14. Nc4 {[%emt 0:01:30]} Nd4 {[%emt 0:03:37]} 15. Nxd4 {[%emt 0:02:50]} cxd4 {[%emt 0:02:29]} 16. Bxd5 {[%emt 0:03:46]} exd5 {[%emt 0:00:21]} 17. Nd6+ {[%emt 0:10:21]} Kf8 {[%emt 0:00:07]} 18. Bf4 {[%emt 0:14:13]} g5 {[%emt 0:05:34]} 19. Qh5 1-0